[Event "Titled Tuesday Blitz August 09 Late 2022"]
[White "Nakamura, Hikaru"]
[Black "Harvey, Marcus R"]
[WhiteFideId "2016192"]
[BlackFideId "400092"]
[WhiteElo "2850"]
[BlackElo "2485"]
[Result "1-0"]
[Round "06"]
[TimeControl "180+1"]
[Date "2022.08.09"]
[WhiteClock "0:01:30"]
[BlackClock "0:00:10"]

1. g3 {[%clk 0:03:00]}  d5 {[%clk 0:02:59]} 2. Bg2 {[%clk 0:03:01]}  Nf6 {[%clk 0:02:58]} 3. d3 {[%clk 0:03:02]}  c6 {[%clk 0:02:53]} 4. Nd2 {[%clk 0:03:01]}  g6 {[%clk 0:02:53]} 5. e4 {[%clk 0:03:00]}  Bg7 {[%clk 0:02:54]} 6. Ngf3 {[%clk 0:03:01]}  O-O {[%clk 0:02:54]} 7. O-O {[%clk 0:03:01]}  dxe4 {[%clk 0:02:54]} 8. dxe4 {[%clk 0:03:02]}  Na6 {[%clk 0:02:54]} 9. e5 {[%clk 0:03:01]}  Nd5 {[%clk 0:02:54]} 10. Re1 {[%clk 0:03:00]}  Bg4 {[%clk 0:02:52]} 11. h3 {[%clk 0:02:59]}  Bxf3 {[%clk 0:02:52]} 12. Nxf3 {[%clk 0:03:00]}  Ndc7 {[%clk 0:02:45]} 13. Qe2 {[%clk 0:03:00]}  Ne6 {[%clk 0:02:44]} 14. Be3 {[%clk 0:02:56]}  Nb4 {[%clk 0:02:41]} 15. h4 {[%clk 0:02:49]}  Nd5 {[%clk 0:02:38]} 16. Bd2 {[%clk 0:02:47]}  Qb6 {[%clk 0:02:36]} 17. c4 {[%clk 0:02:41]}  Nb4 {[%clk 0:02:31]} 18. Be3 {[%clk 0:02:26]}  Qc7 {[%clk 0:02:24]} 19. Bh3 {[%clk 0:02:19]}  Bxe5 {[%clk 0:01:59]} 20. Bxe6 {[%clk 0:02:15]}  fxe6 {[%clk 0:02:00]} 21. Bh6 {[%clk 0:02:15]}  Bg7 {[%clk 0:01:56]} 22. Bxg7 {[%clk 0:02:13]}  Kxg7 {[%clk 0:01:56]} 23. Ng5 {[%clk 0:02:14]}  Rf6 {[%clk 0:01:39]} 24. Nxe6+ {[%clk 0:02:13]}  Rxe6 {[%clk 0:01:39]} 25. Qxe6 {[%clk 0:02:13]}  Nc2 {[%clk 0:01:39]} 26. Red1 {[%clk 0:02:00]}  Rd8 {[%clk 0:00:55]} 27. Rxd8 {[%clk 0:01:57]}  Qxd8 {[%clk 0:00:56]} 28. Qe5+ {[%clk 0:01:55]}  Kf7 {[%clk 0:00:54]} 29. Rf1 {[%clk 0:01:53]}  Nd4 {[%clk 0:00:53]} 30. Kg2 {[%clk 0:01:52]}  Nf5 {[%clk 0:00:45]} 31. Re1 {[%clk 0:01:52]}  Qd7 {[%clk 0:00:45]} 32. Qh8 {[%clk 0:01:45]}  h5 {[%clk 0:00:45]} 33. Qe5 {[%clk 0:01:39]}  Qd3 {[%clk 0:00:39]} 34. b3 {[%clk 0:01:36]}  Qd2 {[%clk 0:00:36]} 35. Qe6+ {[%clk 0:01:36]}  Kg7 {[%clk 0:00:35]} 36. Qe2 {[%clk 0:01:36]}  Qb4 {[%clk 0:00:20]} 37. Rd1 {[%clk 0:01:36]}  Qc5 {[%clk 0:00:18]} 38. Rd7 {[%clk 0:01:35]}  Kf7 {[%clk 0:00:18]} 39. Rxb7 {[%clk 0:01:34]}  Qd4 {[%clk 0:00:15]} 40. Qf3 {[%clk 0:01:33]}  a5 {[%clk 0:00:10]} 41. Rc7 {[%clk 0:01:30]} 1-0


[Site "https://www.chess.com"]

[Event "Titled Tuesday Blitz August 09 Late 2022"]
[White "Pakleza, Zbigniew"]
[Black "Salem, A.R. Saleh"]
[WhiteFideId "1119290"]
[BlackFideId "9301348"]
[WhiteElo "2411"]
[BlackElo "2674"]
[Result "1/2-1/2"]
[Round "06"]
[TimeControl "180+1"]
[Date "2022.08.09"]
[WhiteClock "0:00:08"]
[BlackClock "0:00:10"]

1. d4 {[%clk 0:03:00]}  d5 {[%clk 0:02:59]} 2. Bf4 {[%clk 0:03:00]}  e6 {[%clk 0:02:59]} 3. e3 {[%clk 0:03:00]}  c5 {[%clk 0:02:59]} 4. c3 {[%clk 0:03:00]}  Nc6 {[%clk 0:02:59]} 5. Nd2 {[%clk 0:03:01]}  cxd4 {[%clk 0:02:59]} 6. cxd4 {[%clk 0:03:00]}  Bd6 {[%clk 0:02:54]} 7. Bxd6 {[%clk 0:02:58]}  Qxd6 {[%clk 0:02:55]} 8. Ngf3 {[%clk 0:02:59]}  Nge7 {[%clk 0:02:53]} 9. Bd3 {[%clk 0:02:57]}  O-O {[%clk 0:02:47]} 10. Rc1 {[%clk 0:02:55]}  Bd7 {[%clk 0:02:42]} 11. O-O {[%clk 0:02:46]}  Nb4 {[%clk 0:02:41]} 12. Bb1 {[%clk 0:02:32]}  Bb5 {[%clk 0:02:41]} 13. Re1 {[%clk 0:02:28]}  Nd3 {[%clk 0:02:23]} 14. Bxd3 {[%clk 0:02:28]}  Bxd3 {[%clk 0:02:24]} 15. Qb3 {[%clk 0:02:21]}  Ba6 {[%clk 0:02:23]} 16. Rc3 {[%clk 0:02:16]}  Rfc8 {[%clk 0:02:16]} 17. Rec1 {[%clk 0:02:15]}  Rxc3 {[%clk 0:02:15]} 18. Rxc3 {[%clk 0:02:16]}  Nc6 {[%clk 0:02:13]} 19. Qc2 {[%clk 0:02:00]}  h6 {[%clk 0:02:13]} 20. a3 {[%clk 0:02:00]}  Rd8 {[%clk 0:02:11]} 21. h3 {[%clk 0:01:59]}  Be2 {[%clk 0:01:48]} 22. Qc1 {[%clk 0:01:20]}  Qe7 {[%clk 0:01:31]} 23. Qe1 {[%clk 0:01:08]}  Bb5 {[%clk 0:01:27]} 24. Nb3 {[%clk 0:01:07]}  b6 {[%clk 0:01:09]} 25. Qc1 {[%clk 0:01:00]}  Qd6 {[%clk 0:01:09]} 26. Nbd2 {[%clk 0:00:52]}  Ne7 {[%clk 0:00:42]} 27. Ne5 {[%clk 0:00:37]}  f6 {[%clk 0:00:42]} 28. Nd3 {[%clk 0:00:38]}  Bxd3 {[%clk 0:00:40]} 29. Rxd3 {[%clk 0:00:39]}  Rc8 {[%clk 0:00:41]} 30. Rc3 {[%clk 0:00:39]}  Rc6 {[%clk 0:00:35]} 31. Rxc6 {[%clk 0:00:34]}  Nxc6 {[%clk 0:00:36]} 32. Qc3 {[%clk 0:00:33]}  Kf7 {[%clk 0:00:34]} 33. b4 {[%clk 0:00:28]}  Qd7 {[%clk 0:00:28]} 34. Nb3 {[%clk 0:00:27]}  Ne7 {[%clk 0:00:28]} 35. Kf1 {[%clk 0:00:19]}  Nf5 {[%clk 0:00:28]} 36. Ke2 {[%clk 0:00:17]}  h5 {[%clk 0:00:29]} 37. Qd3 {[%clk 0:00:15]}  Qa4 {[%clk 0:00:26]} 38. Nd2 {[%clk 0:00:15]}  h4 {[%clk 0:00:26]} 39. e4 {[%clk 0:00:12]}  dxe4 {[%clk 0:00:23]} 40. Nxe4 {[%clk 0:00:12]}  Qc6 {[%clk 0:00:22]} 41. f3 {[%clk 0:00:11]}  Qd5 {[%clk 0:00:22]} 42. Nc3 {[%clk 0:00:09]}  Qxd4 {[%clk 0:00:18]} 43. Qxd4 {[%clk 0:00:04]}  Nxd4+ {[%clk 0:00:19]} 44. Kd3 {[%clk 0:00:05]}  e5 {[%clk 0:00:19]} 45. Kc4 {[%clk 0:00:02]}  Ke6 {[%clk 0:00:18]} 46. a4 {[%clk 0:00:03]}  f5 {[%clk 0:00:17]} 47. a5 {[%clk 0:00:03]}  bxa5 {[%clk 0:00:17]} 48. bxa5 {[%clk 0:00:04]}  Kd6 {[%clk 0:00:13]} 49. f4 {[%clk 0:00:04]}  Nc6 {[%clk 0:00:12]} 50. fxe5+ {[%clk 0:00:04]}  Kxe5 {[%clk 0:00:11]} 51. Kb5 {[%clk 0:00:05]}  Nb8 {[%clk 0:00:10]} 52. Kc5 {[%clk 0:00:05]}  g5 {[%clk 0:00:10]} 53. Nd5 {[%clk 0:00:04]}  g4 {[%clk 0:00:10]} 54. Ne3 {[%clk 0:00:03]}  g3 {[%clk 0:00:10]} 55. Nf1 {[%clk 0:00:02]}  f4 {[%clk 0:00:10]} 56. Nd2 {[%clk 0:00:03]}  Na6+ {[%clk 0:00:10]} 57. Kb5 {[%clk 0:00:03]}  Nb8 {[%clk 0:00:10]} 58. Nf3+ {[%clk 0:00:03]}  Ke4 {[%clk 0:00:11]} 59. Nxh4 {[%clk 0:00:04]}  Ke3 {[%clk 0:00:12]} 60. Kc5 {[%clk 0:00:03]}  Kf2 {[%clk 0:00:12]} 61. Kd5 {[%clk 0:00:03]}  Ke3 {[%clk 0:00:06]} 62. Nf5+ {[%clk 0:00:02]}  Kf2 {[%clk 0:00:07]} 63. Nh4 {[%clk 0:00:03]}  Ke3 {[%clk 0:00:07]} 64. Nf5+ {[%clk 0:00:03]}  Ke2 {[%clk 0:00:08]} 65. Ke4 {[%clk 0:00:03]}  f3 {[%clk 0:00:08]} 66. Nxg3+ {[%clk 0:00:03]}  Kf2 {[%clk 0:00:09]} 67. gxf3 {[%clk 0:00:03]}  Kxg3 {[%clk 0:00:09]} 68. f4 {[%clk 0:00:04]}  Kxh3 {[%clk 0:00:09]} 69. f5 {[%clk 0:00:05]}  Kg4 {[%clk 0:00:09]} 70. f6 {[%clk 0:00:05]}  Nd7 {[%clk 0:00:09]} 71. f7 {[%clk 0:00:05]}  Kg5 {[%clk 0:00:09]} 72. Kd5 {[%clk 0:00:06]}  Kf6 {[%clk 0:00:09]} 73. Kc6 {[%clk 0:00:06]}  Ke7 {[%clk 0:00:10]} 74. Kb7 {[%clk 0:00:05]}  Kxf7 {[%clk 0:00:09]} 75. Kxa7 {[%clk 0:00:06]}  Ke7 {[%clk 0:00:09]} 76. Kb7 {[%clk 0:00:07]}  Kd8 {[%clk 0:00:09]} 77. a6 {[%clk 0:00:07]}  Nc5+ {[%clk 0:00:09]} 78. Kb6 {[%clk 0:00:08]}  Nxa6 {[%clk 0:00:10]} 1/2-1/2


[Site "https://www.chess.com"]

[Event "Titled Tuesday Blitz August 09 Late 2022"]
[White "Rasulov, Vugar"]
[Black "Luo, Terry"]
[WhiteFideId "13402390"]
[BlackFideId "30931045"]
[WhiteElo "2509"]
[BlackElo "2024"]
[Result "1-0"]
[Round "06"]
[TimeControl "180+1"]
[Date "2022.08.09"]
[WhiteClock "0:02:34"]
[BlackClock "0:02:13"]

1. e4 {[%clk 0:03:00]}  e5 {[%clk 0:03:00]} 2. Nf3 {[%clk 0:03:01]}  Nc6 {[%clk 0:03:00]} 3. Bc4 {[%clk 0:03:01]}  Bc5 {[%clk 0:03:00]} 4. O-O {[%clk 0:03:01]}  Nf6 {[%clk 0:02:59]} 5. d4 {[%clk 0:03:02]}  Bxd4 {[%clk 0:02:58]} 6. Nxd4 {[%clk 0:03:02]}  Nxd4 {[%clk 0:02:59]} 7. f4 {[%clk 0:03:01]}  d6 {[%clk 0:02:58]} 8. fxe5 {[%clk 0:03:01]}  dxe5 {[%clk 0:02:59]} 9. Bg5 {[%clk 0:03:02]}  Be6 {[%clk 0:02:51]} 10. Na3 {[%clk 0:03:01]}  Qe7 {[%clk 0:02:47]} 11. c3 {[%clk 0:02:59]}  Nc6 {[%clk 0:02:42]} 12. Kh1 {[%clk 0:02:55]}  Rd8 {[%clk 0:02:35]} 13. Qf3 {[%clk 0:02:53]}  h6 {[%clk 0:02:21]} 14. Bxf6 {[%clk 0:02:44]}  Qxf6 {[%clk 0:02:18]} 15. Qxf6 {[%clk 0:02:44]}  gxf6 {[%clk 0:02:18]} 16. Bxe6 {[%clk 0:02:45]}  fxe6 {[%clk 0:02:18]} 17. Rxf6 {[%clk 0:02:45]}  Ke7 {[%clk 0:02:16]} 18. Raf1 {[%clk 0:02:46]}  Rdf8 {[%clk 0:02:17]} 19. Rxf8 {[%clk 0:02:45]}  Rxf8 {[%clk 0:02:18]} 20. Rxf8 {[%clk 0:02:46]}  Kxf8 {[%clk 0:02:19]} 21. Kg1 {[%clk 0:02:45]}  Ke7 {[%clk 0:02:16]} 22. Kf2 {[%clk 0:02:46]}  Kd6 {[%clk 0:02:15]} 23. Ke3 {[%clk 0:02:40]}  a5 {[%clk 0:02:15]} 24. g4 {[%clk 0:02:34]}  Ne7 {[%clk 0:02:15]} 25. Nc4+ {[%clk 0:02:33]}  Kc6 {[%clk 0:02:13]} 26. Nxe5+ {[%clk 0:02:34]} 1-0


[Site "https://www.chess.com"]

[Event "Titled Tuesday Blitz August 09 Late 2022"]
[White "Tanenbaum, Zachary"]
[Black "Lorenzo De La Riva, Lazaro"]
[WhiteFideId "2060850"]
[BlackFideId "2268809"]
[WhiteElo "2175"]
[BlackElo "2325"]
[Result "1-0"]
[Round "06"]
[TimeControl "180+1"]
[Date "2022.08.09"]
[WhiteClock "0:02:29"]
[BlackClock "0:01:45"]

1. e4 {[%clk 0:03:00]}  c6 {[%clk 0:02:57]} 2. d4 {[%clk 0:03:01]}  d5 {[%clk 0:02:56]} 3. exd5 {[%clk 0:03:01]}  cxd5 {[%clk 0:02:57]} 4. Bd3 {[%clk 0:03:02]}  Nc6 {[%clk 0:02:57]} 5. c3 {[%clk 0:03:03]}  Qc7 {[%clk 0:02:56]} 6. Bg5 {[%clk 0:03:03]}  e6 {[%clk 0:02:52]} 7. Nf3 {[%clk 0:03:00]}  Bd6 {[%clk 0:02:51]} 8. O-O {[%clk 0:02:59]}  Nge7 {[%clk 0:02:49]} 9. Bh4 {[%clk 0:02:59]}  Ng6 {[%clk 0:02:36]} 10. Bg3 {[%clk 0:02:58]}  Nf4 {[%clk 0:02:36]} 11. Bxf4 {[%clk 0:02:56]}  Bxf4 {[%clk 0:02:37]} 12. g3 {[%clk 0:02:55]}  Bd6 {[%clk 0:02:37]} 13. Nbd2 {[%clk 0:02:54]}  O-O {[%clk 0:02:36]} 14. Re1 {[%clk 0:02:53]}  f6 {[%clk 0:02:27]} 15. c4 {[%clk 0:02:51]}  Re8 {[%clk 0:02:18]} 16. cxd5 {[%clk 0:02:47]}  Nb4 {[%clk 0:02:18]} 17. Bb5 {[%clk 0:02:47]}  Re7 {[%clk 0:02:11]} 18. dxe6 {[%clk 0:02:39]}  Bxe6 {[%clk 0:02:11]} 19. Rxe6 {[%clk 0:02:34]}  Rxe6 {[%clk 0:02:10]} 20. Qb3 {[%clk 0:02:32]}  Qf7 {[%clk 0:02:02]} 21. Bc4 {[%clk 0:02:32]}  Rae8 {[%clk 0:02:01]} 22. Re1 {[%clk 0:02:27]}  Rxe1+ {[%clk 0:01:59]} 23. Nxe1 {[%clk 0:02:27]}  Rxe1+ {[%clk 0:01:59]} 24. Kg2 {[%clk 0:02:28]}  Qxc4 {[%clk 0:01:50]} 25. Nxc4 {[%clk 0:02:27]}  Bf8 {[%clk 0:01:47]} 26. Ne5+ {[%clk 0:02:27]}  Kh8 {[%clk 0:01:45]} 27. Nf7+ {[%clk 0:02:27]}  Kg8 {[%clk 0:01:45]} 28. Nh6+ {[%clk 0:02:28]}  Kh8 {[%clk 0:01:45]} 29. Qg8# {[%clk 0:02:29]} 1-0


[Site "https://www.chess.com"]

[Event "Titled Tuesday Blitz August 09 Late 2022"]
[White "Vasquez Schroeder, Rodrigo"]
[Black "Claverie, Christophe"]
[WhiteFideId "3400042"]
[BlackFideId "605514"]
[WhiteElo "2567"]
[BlackElo "2300"]
[Result "1-0"]
[Round "06"]
[TimeControl "180+1"]
[Date "2022.08.09"]
[WhiteClock "0:02:28"]
[BlackClock "0:02:28"]

1. e4 {[%clk 0:03:00]}  c5 {[%clk 0:02:57]} 2. Nf3 {[%clk 0:03:00]}  d6 {[%clk 0:02:58]} 3. d4 {[%clk 0:03:01]}  cxd4 {[%clk 0:02:59]} 4. Nxd4 {[%clk 0:03:01]}  Nf6 {[%clk 0:02:59]} 5. Nc3 {[%clk 0:03:02]}  Nc6 {[%clk 0:03:00]} 6. Bg5 {[%clk 0:03:02]}  Bd7 {[%clk 0:03:00]} 7. Qd2 {[%clk 0:03:03]}  Rc8 {[%clk 0:02:54]} 8. f4 {[%clk 0:03:02]}  Nxd4 {[%clk 0:02:52]} 9. Qxd4 {[%clk 0:03:03]}  Qa5 {[%clk 0:02:52]} 10. e5 {[%clk 0:03:03]}  dxe5 {[%clk 0:02:48]} 11. fxe5 {[%clk 0:03:04]}  e6 {[%clk 0:02:48]} 12. O-O-O {[%clk 0:03:04]}  Bc6 {[%clk 0:02:43]} 13. Bb5 {[%clk 0:02:59]}  Bxb5 {[%clk 0:02:43]} 14. exf6 {[%clk 0:02:59]}  Bc6 {[%clk 0:02:41]} 15. h4 {[%clk 0:02:58]}  g6 {[%clk 0:02:42]} 16. Rhe1 {[%clk 0:02:57]}  Qc5 {[%clk 0:02:27]} 17. Rxe6+ {[%clk 0:02:49]}  fxe6 {[%clk 0:02:28]} 18. f7+ {[%clk 0:02:49]}  Kxf7 {[%clk 0:02:28]} 19. Qf6+ {[%clk 0:02:32]}  Ke8 {[%clk 0:02:28]} 20. Qxe6+ {[%clk 0:02:28]} 1-0


[Site "https://www.chess.com"]

[Event "Titled Tuesday Blitz August 09 Late 2022"]
[White "Yanchenko, Roman"]
[Black "Wagner, Dennis"]
[WhiteFideId "4137329"]
[BlackFideId "24650684"]
[WhiteElo "2514"]
[BlackElo "2355"]
[Result "1-0"]
[Round "06"]
[TimeControl "180+1"]
[Date "2022.08.09"]
[WhiteClock "0:01:35"]
[BlackClock "0:00:02"]

1. d4 {[%clk 0:03:00]}  d5 {[%clk 0:02:58]} 2. c4 {[%clk 0:03:01]}  e6 {[%clk 0:02:59]} 3. Nc3 {[%clk 0:03:01]}  Bb4 {[%clk 0:02:59]} 4. Bf4 {[%clk 0:03:00]}  dxc4 {[%clk 0:02:55]} 5. e3 {[%clk 0:03:01]}  b5 {[%clk 0:02:55]} 6. a4 {[%clk 0:03:01]}  c6 {[%clk 0:02:43]} 7. axb5 {[%clk 0:03:01]}  cxb5 {[%clk 0:02:44]} 8. Qf3 {[%clk 0:03:01]}  Qd5 {[%clk 0:02:41]} 9. Qg3 {[%clk 0:03:01]}  Nc6 {[%clk 0:01:53]} 10. Qxg7 {[%clk 0:03:01]}  Bb7 {[%clk 0:01:53]} 11. Qxh8 {[%clk 0:03:00]}  O-O-O {[%clk 0:01:54]} 12. Nf3 {[%clk 0:02:37]}  Nge7 {[%clk 0:01:22]} 13. Qxh7 {[%clk 0:02:36]}  Ng6 {[%clk 0:01:18]} 14. Qxf7 {[%clk 0:02:29]}  Nxf4 {[%clk 0:00:58]} 15. Qxf4 {[%clk 0:02:30]}  Rg8 {[%clk 0:00:33]} 16. Nd2 {[%clk 0:01:57]}  Bxc3 {[%clk 0:00:24]} 17. bxc3 {[%clk 0:01:57]}  e5 {[%clk 0:00:23]} 18. Qf5+ {[%clk 0:01:57]}  Kb8 {[%clk 0:00:23]} 19. e4 {[%clk 0:01:57]}  Qd6 {[%clk 0:00:20]} 20. d5 {[%clk 0:01:58]}  Nd4 {[%clk 0:00:08]} 21. cxd4 {[%clk 0:01:51]}  exd4 {[%clk 0:00:09]} 22. Bxc4 {[%clk 0:01:51]}  bxc4 {[%clk 0:00:09]} 23. Nxc4 {[%clk 0:01:48]}  Qb4+ {[%clk 0:00:09]} 24. Nd2 {[%clk 0:01:48]}  Rxg2 {[%clk 0:00:08]} 25. Qe5+ {[%clk 0:01:43]}  Kc8 {[%clk 0:00:03]} 26. Rc1+ {[%clk 0:01:40]}  Kd8 {[%clk 0:00:02]} 27. Qb8+ {[%clk 0:01:35]} 1-0


[Site "https://www.chess.com"]

[Event "Titled Tuesday Blitz August 09 Late 2022"]
[White "Amburgy, Ryan"]
[Black "Alekseenko, Kirill"]
[WhiteFideId "30924820"]
[BlackFideId "4135539"]
[WhiteElo "2066"]
[BlackElo "2682"]
[Result "0-1"]
[Round "07"]
[TimeControl "180+1"]
[Date "2022.08.09"]
[WhiteClock "0:00:02"]
[BlackClock "0:00:14"]

1. d4 {[%clk 0:03:00]}  d5 {[%clk 0:02:59]} 2. Nc3 {[%clk 0:03:01]}  Nf6 {[%clk 0:02:58]} 3. Bf4 {[%clk 0:03:01]}  c5 {[%clk 0:02:55]} 4. e4 {[%clk 0:03:02]}  cxd4 {[%clk 0:02:53]} 5. Qxd4 {[%clk 0:03:02]}  Nc6 {[%clk 0:02:53]} 6. Bb5 {[%clk 0:03:03]}  Bd7 {[%clk 0:02:52]} 7. Bxc6 {[%clk 0:03:04]}  Bxc6 {[%clk 0:02:52]} 8. e5 {[%clk 0:03:04]}  Nd7 {[%clk 0:02:50]} 9. e6 {[%clk 0:03:04]}  fxe6 {[%clk 0:02:50]} 10. Nf3 {[%clk 0:03:05]}  Qb6 {[%clk 0:02:48]} 11. Qd2 {[%clk 0:03:06]}  g6 {[%clk 0:02:31]} 12. O-O {[%clk 0:02:56]}  Bg7 {[%clk 0:02:30]} 13. Be3 {[%clk 0:02:41]}  Qxb2 {[%clk 0:02:23]} 14. Bd4 {[%clk 0:02:41]}  e5 {[%clk 0:02:03]} 15. Nxd5 {[%clk 0:02:09]}  exd4 {[%clk 0:02:03]} 16. Nc7+ {[%clk 0:02:10]}  Kf7 {[%clk 0:01:38]} 17. Ng5+ {[%clk 0:02:07]}  Kg8 {[%clk 0:01:29]} 18. Nxa8 {[%clk 0:02:06]}  Qb5 {[%clk 0:01:24]} 19. Rae1 {[%clk 0:01:29]}  Bf6 {[%clk 0:01:02]} 20. Ne6 {[%clk 0:01:17]}  Qd5 {[%clk 0:00:59]} 21. Nf4 {[%clk 0:01:00]}  Qd6 {[%clk 0:00:58]} 22. g3 {[%clk 0:00:36]}  Qb8 {[%clk 0:00:48]} 23. Qb4 {[%clk 0:00:35]}  Qxa8 {[%clk 0:00:30]} 24. Qc4+ {[%clk 0:00:27]}  Kg7 {[%clk 0:00:30]} 25. Ne6+ {[%clk 0:00:28]}  Kh6 {[%clk 0:00:30]} 26. Qd3 {[%clk 0:00:20]}  Qb8 {[%clk 0:00:28]} 27. Qd2+ {[%clk 0:00:18]}  g5 {[%clk 0:00:28]} 28. Nxd4 {[%clk 0:00:14]}  Bxd4 {[%clk 0:00:19]} 29. Qxd4 {[%clk 0:00:15]}  Qd6 {[%clk 0:00:19]} 30. Qe3 {[%clk 0:00:13]}  e5 {[%clk 0:00:17]} 31. h4 {[%clk 0:00:13]}  Rg8 {[%clk 0:00:17]} 32. Rd1 {[%clk 0:00:11]}  Qe6 {[%clk 0:00:17]} 33. f4 {[%clk 0:00:09]}  gxf4 {[%clk 0:00:17]} 34. Rxf4 {[%clk 0:00:07]}  Kg7 {[%clk 0:00:16]} 35. Rf2 {[%clk 0:00:05]}  Kh8 {[%clk 0:00:16]} 36. Rdf1 {[%clk 0:00:05]}  Qd5 {[%clk 0:00:15]} 37. Kh2 {[%clk 0:00:05]}  Nf6 {[%clk 0:00:14]} 38. Kh3 {[%clk 0:00:02]}  Bd7+ {[%clk 0:00:14]} 39. Rf5 {[%clk 0:00:02]}  Bxf5+ {[%clk 0:00:14]} 40. Rxf5 {[%clk 0:00:02]}  Qh1# {[%clk 0:00:14]} 0-1


[Site "https://www.chess.com"]

[Event "Titled Tuesday Blitz August 09 Late 2022"]
[White "Barria Zuniga, Daniel"]
[Black "Hambleton, Aman"]
[WhiteFideId "3400816"]
[BlackFideId "2606577"]
[WhiteElo "2414"]
[BlackElo "2538"]
[Result "0-1"]
[Round "07"]
[TimeControl "180+1"]
[Date "2022.08.09"]
[WhiteClock "0:00:01"]
[BlackClock "0:00:03"]

1. d4 {[%clk 0:03:00]}  Nf6 {[%clk 0:03:00]} 2. c4 {[%clk 0:03:00]}  e6 {[%clk 0:02:57]} 3. Nf3 {[%clk 0:03:00]}  b6 {[%clk 0:02:57]} 4. g3 {[%clk 0:02:59]}  Ba6 {[%clk 0:02:58]} 5. Qc2 {[%clk 0:02:59]}  Bb7 {[%clk 0:02:42]} 6. Bg2 {[%clk 0:02:58]}  Bb4+ {[%clk 0:02:35]} 7. Nbd2 {[%clk 0:02:55]}  Be4 {[%clk 0:02:33]} 8. Qd1 {[%clk 0:02:52]}  Bxd2+ {[%clk 0:02:25]} 9. Qxd2 {[%clk 0:02:51]}  O-O {[%clk 0:02:24]} 10. O-O {[%clk 0:02:51]}  d6 {[%clk 0:02:24]} 11. b3 {[%clk 0:02:51]}  Nbd7 {[%clk 0:02:13]} 12. Bb2 {[%clk 0:02:51]}  Qb8 {[%clk 0:02:07]} 13. Rfe1 {[%clk 0:02:44]}  b5 {[%clk 0:02:03]} 14. Bf1 {[%clk 0:02:23]}  h6 {[%clk 0:01:44]} 15. Nh4 {[%clk 0:02:14]}  bxc4 {[%clk 0:01:22]} 16. bxc4 {[%clk 0:02:14]}  Nb6 {[%clk 0:01:23]} 17. Rac1 {[%clk 0:02:12]}  d5 {[%clk 0:01:15]} 18. f3 {[%clk 0:02:01]}  Bh7 {[%clk 0:01:10]} 19. e3 {[%clk 0:01:54]}  Nxc4 {[%clk 0:00:15]} 20. Bxc4 {[%clk 0:01:55]}  dxc4 {[%clk 0:00:16]} 21. Rxc4 {[%clk 0:01:55]}  Rd8 {[%clk 0:00:16]} 22. Rec1 {[%clk 0:01:52]}  Rd7 {[%clk 0:00:09]} 23. e4 {[%clk 0:01:49]}  Qb6 {[%clk 0:00:08]} 24. Ng2 {[%clk 0:01:48]}  Rb8 {[%clk 0:00:02]} 25. Ba1 {[%clk 0:01:44]}  Rbd8 {[%clk 0:00:02]} 26. Ne3 {[%clk 0:01:37]}  Bg6 {[%clk 0:00:02]} 27. Qc2 {[%clk 0:01:33]}  Ne8 {[%clk 0:00:02]} 28. Rb1 {[%clk 0:01:19]}  Qd6 {[%clk 0:00:02]} 29. Rb7 {[%clk 0:01:08]}  a6 {[%clk 0:00:02]} 30. Qc3 {[%clk 0:01:02]}  Qe7 {[%clk 0:00:02]} 31. e5 {[%clk 0:00:53]}  Qg5 {[%clk 0:00:02]} 32. Bb2 {[%clk 0:00:49]}  h5 {[%clk 0:00:02]} 33. Kf2 {[%clk 0:00:37]}  h4 {[%clk 0:00:02]} 34. Ng2 {[%clk 0:00:26]}  hxg3+ {[%clk 0:00:02]} 35. hxg3 {[%clk 0:00:27]}  Qh6 {[%clk 0:00:02]} 36. Nh4 {[%clk 0:00:21]}  Bh7 {[%clk 0:00:03]} 37. Bc1 {[%clk 0:00:20]}  Qh5 {[%clk 0:00:03]} 38. Be3 {[%clk 0:00:15]}  g5 {[%clk 0:00:04]} 39. Ng2 {[%clk 0:00:14]}  Ng7 {[%clk 0:00:04]} 40. g4 {[%clk 0:00:12]}  Qh2 {[%clk 0:00:04]} 41. Rcxc7 {[%clk 0:00:12]}  Rxc7 {[%clk 0:00:04]} 42. Qxc7 {[%clk 0:00:12]}  Rf8 {[%clk 0:00:04]} 43. Qe7 {[%clk 0:00:13]}  Bd3 {[%clk 0:00:03]} 44. Qxg5 {[%clk 0:00:11]}  Bg6 {[%clk 0:00:03]} 45. Rc7 {[%clk 0:00:08]}  Rb8 {[%clk 0:00:03]} 46. Bd2 {[%clk 0:00:02]}  Ne8 {[%clk 0:00:03]} 47. Re7 {[%clk 0:00:01]}  Ng7 {[%clk 0:00:03]} 0-1


[Site "https://www.chess.com"]

[Event "Titled Tuesday Blitz August 09 Late 2022"]
[White "Csonka, Balazs"]
[Black "Blanco Ronquillo, Humberto L."]
[WhiteFideId "742910"]
[BlackFideId "3504239"]
[WhiteElo "2404"]
[BlackElo "2425"]
[Result "0-1"]
[Round "07"]
[TimeControl "180+1"]
[Date "2022.08.09"]
[WhiteClock "0:00:10"]
[BlackClock "0:01:19"]

1. d4 {[%clk 0:03:00]}  d5 {[%clk 0:02:58]} 2. Nf3 {[%clk 0:03:00]}  Nf6 {[%clk 0:02:58]} 3. c4 {[%clk 0:03:01]}  c6 {[%clk 0:02:58]} 4. e3 {[%clk 0:03:00]}  Bf5 {[%clk 0:02:57]} 5. cxd5 {[%clk 0:02:56]}  cxd5 {[%clk 0:02:57]} 6. Qb3 {[%clk 0:02:56]}  Qc7 {[%clk 0:02:55]} 7. Bd2 {[%clk 0:02:51]}  Nc6 {[%clk 0:02:54]} 8. Bb5 {[%clk 0:02:48]}  e6 {[%clk 0:02:51]} 9. O-O {[%clk 0:02:40]}  Bd6 {[%clk 0:02:51]} 10. Rc1 {[%clk 0:02:07]}  O-O {[%clk 0:02:49]} 11. Nc3 {[%clk 0:01:12]}  Rfc8 {[%clk 0:02:48]} 12. Na4 {[%clk 0:01:08]}  Ne4 {[%clk 0:02:46]} 13. Be1 {[%clk 0:01:07]}  Bg4 {[%clk 0:02:21]} 14. h3 {[%clk 0:01:04]}  Bxf3 {[%clk 0:02:21]} 15. gxf3 {[%clk 0:01:05]}  Ng5 {[%clk 0:02:22]} 16. Kg2 {[%clk 0:01:02]}  h5 {[%clk 0:02:12]} 17. Nc5 {[%clk 0:00:52]}  Rab8 {[%clk 0:01:48]} 18. Qa4 {[%clk 0:00:47]}  Qe7 {[%clk 0:01:45]} 19. Be2 {[%clk 0:00:32]}  e5 {[%clk 0:01:33]} 20. Nb3 {[%clk 0:00:32]}  e4 {[%clk 0:01:31]} 21. f4 {[%clk 0:00:16]}  Nf3 {[%clk 0:01:31]} 22. Nd2 {[%clk 0:00:16]}  Nh4+ {[%clk 0:01:21]} 23. Kf1 {[%clk 0:00:14]}  Qe6 {[%clk 0:01:21]} 24. Bxh5 {[%clk 0:00:12]}  Qxh3+ {[%clk 0:01:20]} 25. Ke2 {[%clk 0:00:13]}  Nf5 {[%clk 0:01:19]} 26. Bxf7+ {[%clk 0:00:12]}  Kxf7 {[%clk 0:01:19]} 27. Qb5 {[%clk 0:00:11]}  Ncxd4+ {[%clk 0:01:18]} 28. exd4 {[%clk 0:00:10]}  Nxd4+ {[%clk 0:01:19]} 0-1


[Site "https://www.chess.com"]